[Event "*** Titled Tuesday Blitz"]
[Site "Chess.com"]
[Date "2020.05.05"]
[Round "1"]
[White "Luibov_AN"]
[Black "SahaNeelash"]
[Result "0-1"]
[WhiteElo "2092"]
[BlackElo "2500"]
[TimeControl "180+1"]
[EndTime "10:06:40 PDT"]
[Termination "SahaNeelash won by resignation"]

1. d4 {[%clk 0:02:42.5]} 1... d6 {[%clk 0:02:59.5]} 2. Nf3 {[%clk 0:02:32.5]}
2... Nd7 {[%clk 0:02:58.9]} 3. e4 {[%clk 0:02:31.6]} 3... g6 {[%clk 0:02:59.1]}
4. c3 {[%clk 0:02:31.7]} 4... Bg7 {[%clk 0:02:57.7]} 5. Qc2 {[%clk 0:02:31.4]}
5... a6 {[%clk 0:02:57.4]} 6. a4 {[%clk 0:02:30.3]} 6... b6 {[%clk 0:02:57.5]}
7. Bc4 {[%clk 0:02:27.3]} 7... e6 {[%clk 0:02:57.6]} 8. Bg5 {[%clk 0:02:25.7]}
8... Ne7 {[%clk 0:02:56.2]} 9. Nbd2 {[%clk 0:02:24.5]} 9... Bb7 {[%clk
0:02:55.6]} 10. O-O {[%clk 0:02:21.4]} 10... h6 {[%clk 0:02:55.7]} 11. Be3
{[%clk 0:02:18.5]} 11... O-O {[%clk 0:02:55.4]} 12. Rfe1 {[%clk 0:02:18.4]}
12... Kh7 {[%clk 0:02:54.1]} 13. Nf1 {[%clk 0:02:15.5]} 13... Nf6 {[%clk
0:02:45.7]} 14. Ng3 {[%clk 0:02:11.4]} 14... Rc8 {[%clk 0:02:24.1]} 15. Rad1
{[%clk 0:02:10.2]} 15... Qd7 {[%clk 0:02:20]} 16. e5 {[%clk 0:01:56]} 16... Nfd5
{[%clk 0:02:19]} 17. Bc1 {[%clk 0:01:45.1]} 17... Rfd8 {[%clk 0:02:00.8]} 18.
Bd3 {[%clk 0:01:29.6]} 18... c5 {[%clk 0:01:56.7]} 19. exd6 {[%clk 0:01:29.4]}
19... Qxd6 {[%clk 0:01:52.6]} 20. Ne4 {[%clk 0:01:28.8]} 20... Qb8 {[%clk
0:01:51.1]} 21. dxc5 {[%clk 0:01:28.5]} 21... bxc5 {[%clk 0:01:52]} 22. Qe2
{[%clk 0:01:24.1]} 22... Qa8 {[%clk 0:01:42.6]} 23. a5 {[%clk 0:01:21.5]} 23...
e5 {[%clk 0:01:32.7]} 24. g3 {[%clk 0:01:12.3]} 24... f5 {[%clk 0:01:30.6]} 25.
Ned2 {[%clk 0:01:04.5]} 25... e4 {[%clk 0:01:30.6]} 26. Nxe4 {[%clk 0:00:55.7]}
26... fxe4 {[%clk 0:01:31.5]} 27. Qxe4 {[%clk 0:00:55.5]} 27... Re8 {[%clk
0:01:27]} 28. Qh4 {[%clk 0:00:50.8]} 28... Nf5 {[%clk 0:01:03.8]} 29. Ng5+
{[%clk 0:00:46.9]} 29... Kg8 {[%clk 0:01:03.3]} 30. Bxf5 {[%clk 0:00:46.2]}
30... hxg5 {[%clk 0:01:03.3]} 31. Qxg5 {[%clk 0:00:39]} 31... gxf5 {[%clk
0:01:03.4]} 32. Rxe8+ {[%clk 0:00:35.3]} 32... Rxe8 {[%clk 0:01:04.3]} 33. Qxf5
{[%clk 0:00:35.2]} 33... Nf6 {[%clk 0:01:01.8]} 34. Bg5 {[%clk 0:00:19.4]} 34...
Bh1 {[%clk 0:00:59.6]} 35. f3 {[%clk 0:00:19.3]} 35... Qxf3 {[%clk 0:00:52.9]}
0-1

[Event "*** Titled Tuesday Blitz"]
[Site "Chess.com"]
[Date "2020.05.05"]
[Round "1"]
[White "chito89"]
[Black "kuba2006"]
[Result "1-0"]
[WhiteElo "2790"]
[BlackElo "2409"]
[TimeControl "180+1"]
[EndTime "10:06:41 PDT"]
[Termination "chito89 won on time"]

1. d4 {[%clk 0:02:43.3]} 1... Nf6 {[%clk 0:03:00.9]} 2. c4 {[%clk 0:02:42.8]}
2... d6 {[%clk 0:03:00.5]} 3. Nf3 {[%clk 0:02:41.8]} 3... Nbd7 {[%clk
0:03:00.9]} 4. Nc3 {[%clk 0:02:40.8]} 4... e5 {[%clk 0:03:01]} 5. g3 {[%clk
0:02:41.1]} 5... Be7 {[%clk 0:03:01.1]} 6. Qc2 {[%clk 0:02:40.8]} 6... O-O
{[%clk 0:03:01.3]} 7. Bg2 {[%clk 0:02:41.3]} 7... c6 {[%clk 0:03:00.6]} 8. O-O
{[%clk 0:02:41.2]} 8... Re8 {[%clk 0:02:53.1]} 9. Rd1 {[%clk 0:02:40.2]} 9...
Qc7 {[%clk 0:02:50]} 10. b3 {[%clk 0:02:35.8]} 10... Bf8 {[%clk 0:02:40.8]} 11.
d5 {[%clk 0:02:29.4]} 11... cxd5 {[%clk 0:02:33.3]} 12. Nxd5 {[%clk 0:02:26.1]}
12... Nxd5 {[%clk 0:02:32.7]} 13. Rxd5 {[%clk 0:02:27]} 13... Nb6 {[%clk
0:02:30.8]} 14. Rd2 {[%clk 0:02:25.5]} 14... d5 {[%clk 0:02:18]} 15. Ng5 {[%clk
0:02:23.7]} 15... g6 {[%clk 0:02:07.1]} 16. cxd5 {[%clk 0:02:23]} 16... Qxc2
{[%clk 0:02:04]} 17. Rxc2 {[%clk 0:02:23.9]} 17... h6 {[%clk 0:02:00.2]} 18. Ne4
{[%clk 0:02:21.2]} 18... Kg7 {[%clk 0:01:09]} 19. Nc3 {[%clk 0:01:46.4]} 19...
Bd7 {[%clk 0:01:03.9]} 20. Bb2 {[%clk 0:01:45]} 20... Nc8 {[%clk 0:00:52.6]} 21.
Ne4 {[%clk 0:01:39.7]} 21... Nd6 {[%clk 0:00:51.6]} 22. Rc7 {[%clk 0:01:37.4]}
22... Bb5 {[%clk 0:00:41.1]} 23. Nc5 {[%clk 0:01:17.3]} 23... Bxe2 {[%clk
0:00:33.5]} 24. Ne6+ {[%clk 0:01:16.8]} 24... Kg8 {[%clk 0:00:12.4]} 25. Nxf8
{[%clk 0:01:15.3]} 25... Kxf8 {[%clk 0:00:12.3]} 26. Ba3 {[%clk 0:01:13.9]}
26... Rad8 {[%clk 0:00:09.7]} 27. Rxb7 {[%clk 0:01:12.8]} 27... Kg8 {[%clk
0:00:06.6]} 28. Bxd6 {[%clk 0:01:09.4]} 28... Rxd6 {[%clk 0:00:06.1]} 29. Rxa7
{[%clk 0:01:09.9]} 29... e4 {[%clk 0:00:06.4]} 30. Re1 {[%clk 0:01:01.9]} 30...
Bd3 {[%clk 0:00:05.7]} 31. Ra5 {[%clk 0:01:02.3]} 31... Red8 {[%clk 0:00:05.4]}
32. f3 {[%clk 0:00:52]} 32... exf3 {[%clk 0:00:01.6]} 33. Bxf3 {[%clk
0:00:52.5]} 33... Bf5 {[%clk 0:00:01.4]} 34. Rc5 {[%clk 0:00:49.9]} 1-0

[Event "*** Titled Tuesday Blitz"]
[Site "Chess.com"]
[Date "2020.05.05"]
[Round "1"]
[White "Korona_91"]
[Black "EugeneRougon"]
[Result "1-0"]
[WhiteElo "2420"]
[BlackElo "2758"]
[TimeControl "180+1"]
[EndTime "10:06:41 PDT"]
[Termination "Korona_91 won on time"]

1. e4 {[%clk 0:03:00]} 1... d6 {[%clk 0:02:58]} 2. d4 {[%clk 0:02:43.8]} 2...
Nf6 {[%clk 0:02:57.4]} 3. Nc3 {[%clk 0:02:44.3]} 3... g6 {[%clk 0:02:57.4]} 4.
Be3 {[%clk 0:02:43.9]} 4... a6 {[%clk 0:02:56.5]} 5. a4 {[%clk 0:02:43.4]} 5...
Bg7 {[%clk 0:02:55.8]} 6. f3 {[%clk 0:02:42.9]} 6... O-O {[%clk 0:02:52.4]} 7.
Qd2 {[%clk 0:02:42.8]} 7... Nc6 {[%clk 0:02:50.5]} 8. Nge2 {[%clk 0:02:42.7]}
8... e5 {[%clk 0:02:48.6]} 9. dxe5 {[%clk 0:02:33.8]} 9... Nxe5 {[%clk 0:02:43]}
10. Ng3 {[%clk 0:02:32.2]} 10... Be6 {[%clk 0:02:22.1]} 11. b3 {[%clk 0:02:32]}
11... d5 {[%clk 0:02:13.5]} 12. Rd1 {[%clk 0:02:29.1]} 12... dxe4 {[%clk
0:01:53.8]} 13. Ngxe4 {[%clk 0:02:23.2]} 13... Nxe4 {[%clk 0:01:39.7]} 14. Nxe4
{[%clk 0:02:24.1]} 14... Bf5 {[%clk 0:01:06]} 15. Qb4 {[%clk 0:02:11.3]} 15...
Qh4+ {[%clk 0:00:55]} 16. Bf2 {[%clk 0:02:01.6]} 16... Qh6 {[%clk 0:00:48.1]}
17. Be2 {[%clk 0:01:48.8]} 17... Rfe8 {[%clk 0:00:34.8]} 18. O-O {[%clk
0:01:40.8]} 18... Ng4 {[%clk 0:00:33.7]} 19. fxg4 {[%clk 0:01:22.8]} 19... Bxe4
{[%clk 0:00:33.9]} 20. Bc4 {[%clk 0:01:17.2]} 20... Be5 {[%clk 0:00:23.5]} 21.
Bxf7+ {[%clk 0:01:14.8]} 21... Kxf7 {[%clk 0:00:24.4]} 22. Be3+ {[%clk
0:01:14.4]} 22... Kg8 {[%clk 0:00:08.9]} 23. Bxh6 {[%clk 0:01:13.6]} 23... Bc6
{[%clk 0:00:08]} 24. Qc4+ {[%clk 0:01:10.8]} 24... Kh8 {[%clk 0:00:07]} 25. Rfe1
{[%clk 0:01:02]} 25... Bf6 {[%clk 0:00:03.9]} 26. Qf4 {[%clk 0:00:58.3]} 26...
Bc3 {[%clk 0:00:03.1]} 27. Rxe8+ {[%clk 0:00:57.1]} 27... Rxe8 {[%clk 0:00:04]}
28. Bg5 {[%clk 0:00:52.8]} 28... Kg7 {[%clk 0:00:02.6]} 29. Qxc7+ {[%clk
0:00:51.9]} 29... Kg8 {[%clk 0:00:03]} 30. Qf4 {[%clk 0:00:51.4]} 1-0

[Event "*** Titled Tuesday Blitz"]
[Site "Chess.com"]
[Date "2020.05.05"]
[Round "1"]
[White "cukin84"]
[Black "aakankshachess"]
[Result "0-1"]
[WhiteElo "2054"]
[BlackElo "2492"]
[TimeControl "180+1"]
[EndTime "10:06:42 PDT"]
[Termination "aakankshachess won by resignation"]

1. e4 {[%clk 0:02:59]} 1... e5 {[%clk 0:02:58.9]} 2. Nf3 {[%clk 0:02:58.1]} 2...
Nc6 {[%clk 0:02:59.5]} 3. c3 {[%clk 0:02:57.1]} 3... Nf6 {[%clk 0:02:59.1]} 4.
d4 {[%clk 0:02:56.7]} 4... d6 {[%clk 0:02:55.7]} 5. Be2 {[%clk 0:02:53.8]} 5...
exd4 {[%clk 0:02:54.2]} 6. cxd4 {[%clk 0:02:49.9]} 6... Be7 {[%clk 0:02:50.3]}
7. Nc3 {[%clk 0:02:48.6]} 7... O-O {[%clk 0:02:50.1]} 8. O-O {[%clk 0:02:47.9]}
8... Bg4 {[%clk 0:02:50.2]} 9. d5 {[%clk 0:02:45.6]} 9... Bxf3 {[%clk 0:02:48]}
10. Bxf3 {[%clk 0:02:45.1]} 10... Ne5 {[%clk 0:02:48.6]} 11. Be2 {[%clk
0:02:44.3]} 11... c6 {[%clk 0:02:44.9]} 12. h3 {[%clk 0:02:42.3]} 12... cxd5
{[%clk 0:02:44.4]} 13. exd5 {[%clk 0:02:40.3]} 13... Rc8 {[%clk 0:02:43]} 14.
Be3 {[%clk 0:02:31.5]} 14... a6 {[%clk 0:02:40.5]} 15. Rc1 {[%clk 0:02:28.2]}
15... b5 {[%clk 0:02:39.8]} 16. Bg5 {[%clk 0:02:26.8]} 16... h6 {[%clk
0:02:36.3]} 17. Bxf6 {[%clk 0:02:26.2]} 17... Bxf6 {[%clk 0:02:36.7]} 18. Ne4
{[%clk 0:02:26.8]} 18... Be7 {[%clk 0:02:36.9]} 19. Qd2 {[%clk 0:02:15.1]} 19...
f5 {[%clk 0:02:33.2]} 20. Rxc8 {[%clk 0:02:12.9]} 20... Qxc8 {[%clk 0:02:32.3]}
21. Rc1 {[%clk 0:02:12.7]} 21... Qd7 {[%clk 0:02:29.4]} 22. Ng3 {[%clk
0:02:05.7]} 22... f4 {[%clk 0:02:26.6]} 23. Ne4 {[%clk 0:02:01.9]} 23... f3
{[%clk 0:02:26.2]} 24. Bf1 {[%clk 0:01:47]} 24... fxg2 {[%clk 0:02:23.3]} 25.
Bxg2 {[%clk 0:01:47.1]} 25... Nf3+ {[%clk 0:02:22.4]} 26. Bxf3 {[%clk
0:01:47.2]} 26... Rxf3 {[%clk 0:02:23]} 27. Ng3 {[%clk 0:01:40.2]} 27... Bg5
{[%clk 0:02:17.8]} 28. Qd1 {[%clk 0:01:38.3]} 28... Rxg3+ {[%clk 0:01:37.6]} 29.
fxg3 {[%clk 0:01:35.4]} 29... Bxc1 {[%clk 0:01:37.6]} 30. Qxc1 {[%clk
0:01:35.1]} 30... Qxh3 {[%clk 0:01:38.1]} 31. Qf4 {[%clk 0:01:26.9]} 31... Qd7
{[%clk 0:01:36.4]} 32. Qd4 {[%clk 0:01:22.5]} 32... Qe7 {[%clk 0:01:35.8]} 33.
Kh2 {[%clk 0:01:14.2]} 33... Qe2+ {[%clk 0:01:35.1]} 34. Kh3 {[%clk 0:01:14.2]}
34... Qf1+ {[%clk 0:01:34.3]} 35. Kh2 {[%clk 0:01:13.1]} 35... Qe2+ {[%clk
0:01:30.5]} 36. Kh3 {[%clk 0:01:13.3]} 36... Kh7 {[%clk 0:01:30.9]} 37. a3
{[%clk 0:01:06.1]} 37... Kg6 {[%clk 0:01:29.4]} 38. g4 {[%clk 0:00:57.7]} 38...
Qe5 {[%clk 0:01:23.3]} 39. Qd3+ {[%clk 0:00:57.2]} 39... Kf7 {[%clk 0:01:22.9]}
40. Qf3+ {[%clk 0:00:53.8]} 40... Ke7 {[%clk 0:01:22.9]} 41. b4 {[%clk
0:00:50.9]} 41... Qe1 {[%clk 0:01:18.9]} 42. Qf5 {[%clk 0:00:50]} 42... Qe3+
{[%clk 0:01:17.9]} 43. Kg2 {[%clk 0:00:49.2]} 43... Qe5 {[%clk 0:01:14.1]} 44.
Qd3 {[%clk 0:00:48.1]} 44... Kf6 {[%clk 0:01:13.2]} 45. Qf3+ {[%clk 0:00:46.8]}
45... Kg5 {[%clk 0:01:13.6]} 46. Kh3 {[%clk 0:00:44.9]} 46... h5 {[%clk
0:01:07.7]} 47. Qf7 {[%clk 0:00:29.1]} 47... hxg4+ {[%clk 0:01:06.7]} 48. Kg2
{[%clk 0:00:30]} 48... Qe2+ {[%clk 0:01:06.2]} 49. Kg1 {[%clk 0:00:29.8]} 49...
Qe3+ {[%clk 0:01:06.2]} 50. Kg2 {[%clk 0:00:29.8]} 50... Qf3+ {[%clk 0:01:06.5]}
51. Qxf3 {[%clk 0:00:29.2]} 51... gxf3+ {[%clk 0:01:07.4]} 52. Kxf3 {[%clk
0:00:29.4]} 52... Kf5 {[%clk 0:01:08.2]} 0-1

[Event "*** Titled Tuesday Blitz"]
[Site "Chess.com"]
[Date "2020.05.05"]
[Round "1"]
[White "124chess"]
[Black "Aureliano-Buendia"]
[Result "1-0"]
[WhiteElo "2736"]
[BlackElo "2385"]
[TimeControl "180+1"]
[EndTime "10:06:45 PDT"]
[Termination "124chess won by resignation"]

1. e4 {[%clk 0:03:00.9]} 1... e5 {[%clk 0:02:58.8]} 2. Nf3 {[%clk 0:03:00.2]}
2... Nc6 {[%clk 0:02:55.1]} 3. Bc4 {[%clk 0:02:56.5]} 3... Bc5 {[%clk
0:02:53.9]} 4. c3 {[%clk 0:02:52.7]} 4... Nf6 {[%clk 0:02:48.9]} 5. d3 {[%clk
0:02:52.3]} 5... a6 {[%clk 0:02:44.1]} 6. Bb3 {[%clk 0:02:51.6]} 6... O-O {[%clk
0:02:38.4]} 7. Nbd2 {[%clk 0:02:40.8]} 7... d5 {[%clk 0:02:36.9]} 8. exd5 {[%clk
0:02:37.1]} 8... Nxd5 {[%clk 0:02:36.1]} 9. Ne4 {[%clk 0:02:36.6]} 9... Ba7
{[%clk 0:02:25]} 10. O-O {[%clk 0:02:35.9]} 10... f6 {[%clk 0:02:21.1]} 11. Re1
{[%clk 0:02:33.5]} 11... Be6 {[%clk 0:02:19.2]} 12. d4 {[%clk 0:02:32.9]} 12...
exd4 {[%clk 0:02:15.4]} 13. cxd4 {[%clk 0:02:23.8]} 13... Bf7 {[%clk 0:02:10.9]}
14. Nc5 {[%clk 0:02:22.9]} 14... Bxc5 {[%clk 0:01:59.8]} 15. dxc5 {[%clk
0:02:23.8]} 15... Ndb4 {[%clk 0:02:00.5]} 16. Bxf7+ {[%clk 0:02:16.6]} 16...
Rxf7 {[%clk 0:01:59.4]} 17. Qb3 {[%clk 0:02:16.9]} 17... Qd3 {[%clk 0:01:54.5]}
18. Rd1 {[%clk 0:01:58.3]} 18... Qxb3 {[%clk 0:01:44.2]} 19. axb3 {[%clk
0:01:59.2]} 19... Rd8 {[%clk 0:01:39.2]} 20. Bf4 {[%clk 0:01:57.8]} 20... Rfd7
{[%clk 0:01:35.8]} 21. Rxd7 {[%clk 0:01:48.9]} 21... Rxd7 {[%clk 0:01:35.1]} 22.
h4 {[%clk 0:01:47.4]} 22... h5 {[%clk 0:01:31.7]} 23. g3 {[%clk 0:01:33.9]}
23... Kf7 {[%clk 0:01:25.8]} 24. Kg2 {[%clk 0:01:27.6]} 24... Rd3 {[%clk
0:00:49.5]} 25. Bxc7 {[%clk 0:01:23.7]} 25... Rxb3 {[%clk 0:00:48.6]} 26. Rd1
{[%clk 0:01:19.9]} 26... Rd3 {[%clk 0:00:34.9]} 27. Re1 {[%clk 0:01:15.3]} 27...
Rd5 {[%clk 0:00:31.7]} 28. Bd6 {[%clk 0:01:13.9]} 28... Nd3 {[%clk 0:00:31]} 29.
Re3 {[%clk 0:01:01.1]} 29... Nxb2 {[%clk 0:00:27.4]} 30. Rb3 {[%clk 0:00:55.8]}
30... Nc4 {[%clk 0:00:24.3]} 31. Rxb7+ {[%clk 0:00:55.2]} 31... Ke6 {[%clk
0:00:24.6]} 32. Rc7 {[%clk 0:00:54.3]} 32... N4e5 {[%clk 0:00:16.8]} 33. Nxe5
{[%clk 0:00:51.2]} 33... Nxe5 {[%clk 0:00:17.7]} 34. Rxg7 {[%clk 0:00:51.1]}
34... Nd7 {[%clk 0:00:16.5]} 35. Re7+ {[%clk 0:00:49]} 1-0

[Event "*** Titled Tuesday Blitz"]
[Site "Chess.com"]
[Date "2020.05.05"]
[Round "1"]
[White "bolence16"]
[Black "Gergo85"]
[Result "0-1"]
[WhiteElo "2146"]
[BlackElo "2520"]
[TimeControl "180+1"]
[EndTime "10:06:45 PDT"]
[Termination "Gergo85 won by resignation"]

1. e4 {[%clk 0:03:00.9]} 1... c6 {[%clk 0:02:59.9]} 2. d4 {[%clk 0:03:00.8]}
2... d5 {[%clk 0:03:00.8]} 3. exd5 {[%clk 0:03:01.3]} 3... cxd5 {[%clk
0:03:01.1]} 4. Nf3 {[%clk 0:03:02]} 4... Nc6 {[%clk 0:03:01.2]} 5. c3 {[%clk
0:03:02.5]} 5... Qc7 {[%clk 0:02:59.1]} 6. Bd3 {[%clk 0:03:02]} 6... Nf6 {[%clk
0:02:58.5]} 7. h3 {[%clk 0:03:02.5]} 7... g6 {[%clk 0:02:58.4]} 8. O-O {[%clk
0:03:02.7]} 8... Bf5 {[%clk 0:02:58.4]} 9. Be3 {[%clk 0:02:54.7]} 9... Bg7
{[%clk 0:02:50.3]} 10. Na3 {[%clk 0:02:54.1]} 10... a6 {[%clk 0:02:49.1]} 11.
Nc2 {[%clk 0:02:49.7]} 11... Bxd3 {[%clk 0:02:47.3]} 12. Qxd3 {[%clk 0:02:49.6]}
12... O-O {[%clk 0:02:48.2]} 13. Rfe1 {[%clk 0:02:49]} 13... Rfe8 {[%clk
0:02:45.4]} 14. Bg5 {[%clk 0:02:44.7]} 14... Ne4 {[%clk 0:02:38.9]} 15. Bc1
{[%clk 0:02:38.2]} 15... Rad8 {[%clk 0:02:18.8]} 16. Ne3 {[%clk 0:02:28.6]}
16... e5 {[%clk 0:02:00.2]} 17. Nxd5 {[%clk 0:02:09.8]} 17... Nxf2 {[%clk
0:01:30.5]} 18. Nxc7 {[%clk 0:01:36.1]} 18... Nxd3 {[%clk 0:01:30.5]} 19. Nxe8
{[%clk 0:01:36.2]} 19... Nxe1 {[%clk 0:01:30]} 20. Nxg7 {[%clk 0:01:36.5]} 20...
Nxf3+ {[%clk 0:01:29.6]} 21. gxf3 {[%clk 0:01:37.4]} 21... Kxg7 {[%clk
0:01:17.9]} 22. Be3 {[%clk 0:01:11.1]} 22... exd4 {[%clk 0:01:13.6]} 23. cxd4
{[%clk 0:01:11]} 23... Nxd4 {[%clk 0:01:10.6]} 24. Kf2 {[%clk 0:01:07.3]} 24...
Nf5 {[%clk 0:01:04.2]} 25. Rc1 {[%clk 0:01:04.3]} 25... Rd7 {[%clk 0:01:04.7]}
26. Bc5 {[%clk 0:00:55.9]} 26... f6 {[%clk 0:00:59.1]} 27. b4 {[%clk 0:00:53.1]}
27... Kf7 {[%clk 0:00:59.4]} 28. Rc4 {[%clk 0:00:51]} 28... Rd2+ {[%clk
0:00:55]} 29. Kf1 {[%clk 0:00:48.5]} 29... Rxa2 {[%clk 0:00:54]} 30. Bf2 {[%clk
0:00:47.4]} 30... Ke6 {[%clk 0:00:40]} 31. Rc7 {[%clk 0:00:46.2]} 31... b5
{[%clk 0:00:40.4]} 32. Rxh7 {[%clk 0:00:45.1]} 32... Nd6 {[%clk 0:00:33.3]} 33.
h4 {[%clk 0:00:39]} 33... Nc4 {[%clk 0:00:33.5]} 34. h5 {[%clk 0:00:28.4]} 34...
gxh5 {[%clk 0:00:33]} 35. Rxh5 {[%clk 0:00:28.7]} 35... Ne5 {[%clk 0:00:28.1]}
36. Kg2 {[%clk 0:00:23.1]} 36... Nd3 {[%clk 0:00:27.4]} 0-1

[Event "*** Titled Tuesday Blitz"]
[Site "Chess.com"]
[Date "2020.05.05"]
[Round "1"]
[White "Konovalova_Vera"]
[Black "lolo9292"]
[Result "0-1"]
[WhiteElo "2098"]
[BlackElo "2503"]
[TimeControl "180+1"]
[EndTime "10:06:46 PDT"]
[Termination "lolo9292 won by resignation"]

1. d4 {[%clk 0:02:59.1]} 1... Nf6 {[%clk 0:02:59]} 2. Bg5 {[%clk 0:02:58.2]}
2... g6 {[%clk 0:02:59.9]} 3. Nf3 {[%clk 0:02:57.1]} 3... Bg7 {[%clk 0:02:59.3]}
4. e3 {[%clk 0:02:56.6]} 4... O-O {[%clk 0:02:59.7]} 5. Bd3 {[%clk 0:02:56.9]}
5... d6 {[%clk 0:02:56.2]} 6. Nbd2 {[%clk 0:02:56]} 6... Nbd7 {[%clk 0:02:51]}
7. O-O {[%clk 0:02:54.8]} 7... b6 {[%clk 0:02:49.5]} 8. c4 {[%clk 0:02:53.5]}
8... Bb7 {[%clk 0:02:48.7]} 9. Re1 {[%clk 0:02:49.6]} 9... h6 {[%clk 0:02:46.7]}
10. Bh4 {[%clk 0:02:48.9]} 10... Qe8 {[%clk 0:02:36.8]} 11. Qc2 {[%clk
0:02:37.9]} 11... e5 {[%clk 0:02:28.7]} 12. dxe5 {[%clk 0:02:35.6]} 12... Nxe5
{[%clk 0:02:27.1]} 13. Nxe5 {[%clk 0:02:30.3]} 13... Qxe5 {[%clk 0:02:28]} 14.
Bg3 {[%clk 0:02:23.8]} 14... Qe7 {[%clk 0:02:21.3]} 15. Rab1 {[%clk 0:02:16.9]}
15... Rfe8 {[%clk 0:02:08]} 16. b4 {[%clk 0:02:08.6]} 16... a5 {[%clk
0:02:04.7]} 17. c5 {[%clk 0:01:57.6]} 17... dxc5 {[%clk 0:01:51.1]} 18. bxc5
{[%clk 0:01:54.7]} 18... Rac8 {[%clk 0:01:51.2]} 19. cxb6 {[%clk 0:01:47.1]}
19... cxb6 {[%clk 0:01:52.1]} 20. Qb3 {[%clk 0:01:43.5]} 20... Bd5 {[%clk
0:01:36.4]} 21. Bc4 {[%clk 0:01:37.3]} 21... Bxc4 {[%clk 0:01:34.1]} 22. Nxc4
{[%clk 0:01:37.2]} 22... Ne4 {[%clk 0:01:31.3]} 23. Nxb6 {[%clk 0:01:18.4]}
23... Rc3 {[%clk 0:01:22.1]} 24. Qa4 {[%clk 0:01:12.1]} 24... Rc5 {[%clk
0:01:17.1]} 25. Rbc1 {[%clk 0:00:57]} 25... Nc3 {[%clk 0:01:12.2]} 26. Qa3
{[%clk 0:00:42.9]} 26... Rc6 {[%clk 0:00:54.7]} 27. Qxe7 {[%clk 0:00:40.3]}
27... Rxe7 {[%clk 0:00:55.6]} 28. Nd5 {[%clk 0:00:29.3]} 28... Rb7 {[%clk
0:00:53.6]} 29. Kh1 {[%clk 0:00:24.5]} 29... Kh7 {[%clk 0:00:48.8]} 30. Nxc3
{[%clk 0:00:22.8]} 30... Bxc3 {[%clk 0:00:49]} 31. Red1 {[%clk 0:00:22.8]} 31...
Rb2 {[%clk 0:00:47.9]} 32. h3 {[%clk 0:00:21.7]} 32... Rxa2 {[%clk 0:00:44.3]}
33. Rd3 {[%clk 0:00:21.7]} 33... Ra3 {[%clk 0:00:39.2]} 34. f3 {[%clk
0:00:19.6]} 34... Rb3 {[%clk 0:00:37]} 35. Be1 {[%clk 0:00:19]} 35... Bxe1
{[%clk 0:00:36.1]} 0-1

[Event "*** Titled Tuesday Blitz"]
[Site "Chess.com"]
[Date "2020.05.05"]
[Round "1"]
[White "Arjun2002"]
[Black "AnonymusDonkey"]
[Result "1-0"]
[WhiteElo "2643"]
[BlackElo "2314"]
[TimeControl "180+1"]
[EndTime "10:06:47 PDT"]
[Termination "Arjun2002 won by resignation"]

1. e4 {[%clk 0:02:59.8]} 1... c5 {[%clk 0:02:59.8]} 2. Nf3 {[%clk 0:02:59.7]}
2... d6 {[%clk 0:02:59.8]} 3. Bb5+ {[%clk 0:03:00]} 3... Bd7 {[%clk 0:02:53.8]}
4. Bxd7+ {[%clk 0:02:59.9]} 4... Nxd7 {[%clk 0:02:54.7]} 5. O-O {[%clk
0:02:59.2]} 5... Ngf6 {[%clk 0:02:54.7]} 6. Qe2 {[%clk 0:02:55.3]} 6... Rc8
{[%clk 0:02:54.4]} 7. d3 {[%clk 0:02:55.3]} 7... g6 {[%clk 0:02:49.6]} 8. Nc3
{[%clk 0:02:41.2]} 8... Bg7 {[%clk 0:02:48.9]} 9. Be3 {[%clk 0:02:36.8]} 9...
O-O {[%clk 0:02:42.2]} 10. Nd2 {[%clk 0:02:36.1]} 10... Nb8 {[%clk 0:02:15.6]}
11. Nd5 {[%clk 0:02:18.4]} 11... Nc6 {[%clk 0:02:05.5]} 12. c3 {[%clk
0:02:16.7]} 12... Nd7 {[%clk 0:01:21.4]} 13. Bg5 {[%clk 0:02:09.9]} 13... h6
{[%clk 0:01:20.2]} 14. Bh4 {[%clk 0:02:09.9]} 14... g5 {[%clk 0:01:15.2]} 15.
Bg3 {[%clk 0:02:09.8]} 15... e6 {[%clk 0:01:15.4]} 16. Ne3 {[%clk 0:02:09.4]}
16... Qe7 {[%clk 0:01:08.4]} 17. f4 {[%clk 0:02:05.6]} 17... f5 {[%clk
0:01:02.3]} 18. Rae1 {[%clk 0:01:47.4]} 18... g4 {[%clk 0:00:34.3]} 19. Qf2
{[%clk 0:01:34.6]} 19... Qf7 {[%clk 0:00:31.9]} 20. Ndc4 {[%clk 0:01:30.2]}
20... Qg6 {[%clk 0:00:10.1]} 21. Nxd6 {[%clk 0:01:26.9]} 21... Rc7 {[%clk
0:00:08.9]} 22. e5 {[%clk 0:01:04.9]} 22... Ne7 {[%clk 0:00:07.6]} 23. Bh4
{[%clk 0:00:57.6]} 23... Nb8 {[%clk 0:00:04.9]} 24. Bxe7 {[%clk 0:00:56.2]}
24... Rxe7 {[%clk 0:00:05.8]} 25. d4 {[%clk 0:00:54.7]} 25... cxd4 {[%clk
0:00:04.1]} 26. cxd4 {[%clk 0:00:54.7]} 26... h5 {[%clk 0:00:02.4]} 27. d5
{[%clk 0:00:54.3]} 27... Nd7 {[%clk 0:00:02.9]} 28. dxe6 {[%clk 0:00:53.7]}
28... Rxe6 {[%clk 0:00:03.2]} 29. Rd1 {[%clk 0:00:50.3]} 29... Nc5 {[%clk
0:00:03.4]} 30. Nexf5 {[%clk 0:00:48.6]} 30... Rxf5 {[%clk 0:00:02.2]} 31. Qxc5
{[%clk 0:00:45.2]} 31... Rf8 {[%clk 0:00:01.4]} 32. f5 {[%clk 0:00:44.8]} 32...
Bxe5 {[%clk 0:00:01.5]} 33. fxg6 {[%clk 0:00:42.6]} 1-0